fUSD/lending_fUSD_20250206
["ID","MTS","AMOUNT","RATE_DAILY","PERIOD"]
[351928472,1738847444693,-498.07345284,0.00019178,2]
[351928474,1738847444703,-514.57772507,0.00019178,2]
[351928476,1738847444713,-829.26,0.00019178,2]
[351928478,1738847444727,-500.0,0.00019178,2]
[351928480,1738847444738,-500.0,0.00019178,2]
[351928482,1738847444748,-506.29,0.00019178,2]
[351928484,1738847444757,-500.0,0.00019178,2]
[351928486,1738847444766,-500.0,0.00019178,2]
[351928487,1738847444776,-500.0,0.00019178,2]
[351928490,1738847444788,-500.0,0.00019178,2]
[351928492,1738847444810,-500.0,0.00019178,2]
[351928494,1738847444821,-500.0,0.00019178,2]
[351928496,1738847444830,-793.69,0.00019178,2]
[351928498,1738847444840,-500.0,0.00019178,2]
[351928500,1738847444850,-678.61,0.00019178,2]
[351928502,1738847444860,-500.0,0.00019178,2]
[351928503,1738847444869,-500.0,0.00019178,2]
[351928506,1738847444879,-500.0,0.00019178,2]
[351928508,1738847444889,-500.0,0.00019178,2]
[351928509,1738847444899,-506.23389997,0.00019178,2]
[351928512,1738847444913,-525.8,0.00019178,2]
[351928514,1738847444922,-500.0,0.00019178,2]
[351928516,1738847444931,-500.0,0.00019178,2]
[351928517,1738847444942,-502.29042593,0.00019178,2]
[351928519,1738847444952,-500.0,0.00019178,2]
[351928521,1738847444962,-500.0,0.00019178,2]
[351928524,1738847444974,-614.19,0.00019178,2]
[351928526,1738847444985,-500.0,0.00019178,2]
[351928527,1738847444994,-500.0,0.00019178,2]
[351928529,1738847445004,-763.82,0.00019178,2]
[351928531,1738847445014,-500.0,0.00019178,2]
[351928533,1738847445024,-503.71587708,0.00019178,2]
[351928535,1738847445034,-500.0,0.00019178,2]
[351928537,1738847445043,-500.0,0.00019178,2]
[351928539,1738847445053,-794.8,0.00019178,2]
[351928541,1738847445063,-500.0,0.00019178,2]
[351928543,1738847445073,-500.0,0.00019178,2]
[351928545,1738847445083,-500.0,0.00019178,2]
[351928547,1738847445092,-500.0,0.00019178,2]
[351928549,1738847445102,-500.0,0.00019178,2]
[351928551,1738847445111,-500.0,0.00019178,2]
[351928553,1738847445121,-503.63,0.00019178,2]
[351928555,1738847445130,-500.0,0.00019178,2]
[351928557,1738847445139,-640.3,0.00019178,2]
[351928559,1738847445149,-500.0,0.00019178,2]
[351928561,1738847445159,-500.0,0.00019178,2]
[351928563,1738847445168,-500.0,0.00019178,2]
[351928565,1738847445178,-500.0,0.00019178,2]
[351928568,1738847445188,-500.0,0.00019178,2]
[351928570,1738847445198,-500.0,0.00019178,2]
[351928572,1738847445207,-500.0,0.00019178,2]
[351928573,1738847445217,-503.54625624,0.00019178,2]
[351928575,1738847445228,-500.0,0.00019178,2]
[351928578,1738847445238,-500.0,0.00019178,2]
[351928580,1738847445247,-500.0,0.00019178,2]
[351928581,1738847445256,-698.21,0.00019178,2]
[351928584,1738847445266,-505.09937784,0.00019178,2]
[351928586,1738847445275,-500.0,0.00019178,2]
[351928587,1738847445285,-500.0,0.00019178,2]
[351928589,1738847445295,-500.0,0.00019178,2]
[351928592,1738847445305,-545.12,0.00019178,2]
[351928594,1738847445314,-1094.9,0.00019178,2]
[351928596,1738847445324,-500.0,0.00019178,2]
[351928598,1738847445333,-500.0,0.00019178,2]
[351928600,1738847445343,-500.0,0.00019178,2]
[351928602,1738847445352,-500.0,0.00019178,2]
[351928604,1738847445362,-500.0,0.00019178,2]
[351928606,1738847445371,-500.0,0.00019178,2]
[351928608,1738847445380,-500.0,0.00019178,2]
[351928610,1738847445391,-500.0,0.00019178,2]
[351928612,1738847445399,-963.48,0.00019178,2]
[351928614,1738847445409,-500.0,0.00019178,2]
[351928616,1738847445418,-634.23,0.00019178,2]
[351928617,1738847445428,-500.0,0.00019178,2]
[351928619,1738847445437,-500.0,0.00019178,2]
[351928621,1738847445447,-500.0,0.00019178,2]
[351928623,1738847445457,-500.0,0.00019178,2]
[351928625,1738847445467,-500.0,0.00019178,2]
[351928627,1738847445479,-500.0,0.00019178,2]
[351928630,1738847445489,-500.0,0.00019178,2]
[351928632,1738847445498,-500.0,0.00019178,2]
[351928633,1738847445508,-569.04110843,0.00019178,2]
[351928635,1738847445517,-500.0,0.00019178,2]
[351928637,1738847445527,-500.0,0.00019178,2]
[351928640,1738847445537,-638.85,0.00019178,2]
[351928642,1738847445547,-1207.59,0.00019178,2]
[351928643,1738847445556,-894.07,0.00019178,2]
[351928645,1738847445566,-500.0,0.00019178,2]
[351928647,1738847445577,-500.0,0.00019178,2]
[351928650,1738847445587,-500.0,0.00019178,2]
[351928651,1738847445598,-500.0,0.00019178,2]
[351928654,1738847445609,-1081.55,0.00019178,2]
[351928656,1738847445620,-500.0,0.00019178,2]
[351928657,1738847445630,-500.0,0.00019178,2]
[351928659,1738847445641,-502.37838684,0.00019178,2]
[351928661,1738847445651,-591.92,0.00019178,2]
[351928663,1738847445661,-500.0,0.00019178,2]
[351928665,1738847445671,-500.0,0.00019178,2]
[351928667,1738847445682,-500.0,0.00019178,2]
[351928669,1738847445692,-500.0,0.00019178,2]
[351928671,1738847445702,-949.11,0.00019178,2]
[351928673,1738847445712,-500.0,0.00019178,2]
[351928675,1738847445726,-1268.08,0.00019178,2]
[351928677,1738847445736,-504.61498051,0.00019178,2]
[351928679,1738847445748,-500.0,0.00019178,2]
[351928681,1738847445758,-1200.0,0.00019178,5]
[351928683,1738847445768,-500.0,0.00019178,2]
[351928685,1738847445777,-1133.16,0.00019178,2]
[351928687,1738847445787,-500.0,0.00019178,2]
[351928689,1738847445797,-500.0,0.00019178,2]
[351928691,1738847445807,-502.79668045,0.00019178,2]
[351928693,1738847445817,-500.0,0.00019178,2]
[351928695,1738847445829,-794.94,0.00019178,2]
[351928697,1738847445839,-500.0,0.00019178,2]
[351928699,1738847445848,-500.0,0.00019178,2]
[351928701,1738847445858,-500.0,0.00019178,2]
[351928703,1738847445867,-500.0,0.00019178,2]
[351928705,1738847445876,-500.0,0.00019178,2]
[351928707,1738847445885,-500.0,0.00019178,2]
[351928710,1738847445900,-988.67,0.00019178,2]
[351928711,1738847445909,-500.0,0.00019178,2]
[351928713,1738847445919,-1055.95,0.00019178,2]
[351928716,1738847445929,-563.69,0.00019178,2]
[351928718,1738847445939,-500.0,0.00019178,2]
[351928720,1738847445948,-778.72,0.00019178,2]
[351928722,1738847445958,-500.0,0.00019178,2]
[351928724,1738847445969,-501.86294938,0.00019178,2]
[351928726,1738847445979,-500.0,0.00019178,2]
[351928727,1738847445988,-1254.94,0.00019178,2]
[351928729,1738847445998,-503.16925034,0.00019178,2]
[351928732,1738847446008,-500.0,0.00019178,2]
[351928734,1738847446017,-500.0,0.00019178,2]
[351928737,1738847446027,-650.01,0.00019178,2]
[351928739,1738847446037,-501.3763129,0.00019178,2]
[351928741,1738847446047,-1063.42,0.00019178,2]
[351928743,1738847446057,-500.0,0.00019178,2]
[351928746,1738847446067,-500.0,0.00019178,2]
[351928748,1738847446076,-500.0,0.00019178,2]
[351928750,1738847446086,-500.0,0.00019178,2]
[351928752,1738847446096,-500.0,0.00019178,2]
[351928754,1738847446105,-500.0,0.00019178,2]
[351928756,1738847446115,-500.0,0.00019178,2]
[351928758,1738847446125,-500.0,0.00019178,2]
[351928760,1738847446135,-554.32,0.00019178,2]
[351928762,1738847446144,-500.0,0.00019178,2]
[351928764,1738847446154,-500.0,0.00019178,2]
[351928766,1738847446163,-500.0,0.00019178,2]
[351928768,1738847446172,-500.0,0.00019178,2]
[351928770,1738847446182,-505.7,0.00019178,2]
[351928772,1738847446192,-581.89,0.00019178,2]
[351928774,1738847446201,-500.0,0.00019178,2]
[351928776,1738847446211,-500.0,0.00019178,2]
[351928777,1738847446222,-500.0,0.00019178,2]
[351928779,1738847446233,-1073.98,0.00019178,2]
[351928781,1738847446243,-500.0,0.00019178,2]
[351928783,1738847446253,-555.99,0.00019178,2]
[351928785,1738847446263,-775.66,0.00019178,2]
[351928787,1738847446272,-500.0,0.00019178,2]
[351928789,1738847446281,-500.0,0.00019178,2]
[351928791,1738847446291,-721.6,0.00019178,2]
[351928793,1738847446300,-662.77,0.00019178,2]
[351928795,1738847446310,-501.52516484,0.00019178,2]
[351928797,1738847446319,-1336.44,0.00019178,2]
[351928799,1738847446329,-500.0,0.00019178,2]
[351928801,1738847446339,-708.76,0.00019178,2]
[351928803,1738847446348,-926.5,0.00019178,2]
[351928804,1738847446357,-995.9,0.00019178,2]
[351928805,1738847446366,-500.0,0.00019178,2]
[351928806,1738847446375,-500.0,0.00019178,2]
[351928807,1738847446384,-913.96,0.00019178,2]
[351928808,1738847446393,-1783.16,0.00019178,2]
[351928809,1738847446402,-500.0,0.00019178,2]
[351928810,1738847446412,-1191.81,0.00019178,2]
[351928811,1738847446421,-500.0,0.00019178,2]
[351928818,1738847446492,-502.61703551,0.00019178,2]
[351928820,1738847446502,-1368.98,0.00019178,2]
[351928822,1738847446511,-500.0,0.00019178,2]
[351928824,1738847446520,-903.51,0.00019178,2]
[351928826,1738847446532,-500.0,0.00019178,2]
[351928828,1738847446541,-500.0,0.00019178,2]
[351928830,1738847446550,-500.0,0.00019178,2]
[351928832,1738847446559,-500.0,0.00019178,2]
[351928834,1738847446569,-500.0,0.00019178,2]
[351928836,1738847446578,-514.11203903,0.00019178,2]
[351928838,1738847446587,-563.13130617,0.00019178,2]
[351928840,1738847446596,-1207.28,0.00019178,2]
[351928842,1738847446605,-1131.74,0.00019178,2]
[351928844,1738847446615,-500.0,0.00019178,2]
[351928845,1738847446623,-500.0,0.00019178,2]
[351928847,1738847446632,-910.7,0.00019178,2]
[351928849,1738847446642,-796.41,0.00019178,2]
[351928851,1738847446651,-800.45,0.00019178,2]
[351928853,1738847446660,-500.0,0.00019178,2]
[351928855,1738847446669,-638.04,0.00019178,2]
[351928857,1738847446678,-500.0,0.00019178,2]
[351928859,1738847446687,-501.16162729,0.00019178,2]
[351928861,1738847446696,-500.0,0.00019178,2]
[351928863,1738847446705,-982.6,0.00019178,2]
[351928865,1738847446715,-500.0,0.00019178,2]
[351928867,1738847446725,-1249.07,0.00019178,2]
[351928869,1738847446734,-1087.45,0.00019178,2]
[351928871,1738847446744,-860.58,0.00019178,2]
[351928873,1738847446753,-629.6,0.00019178,2]
[351928875,1738847446762,-500.0,0.00019178,2]
[351928877,1738847446772,-1172.17,0.00019178,2]
[351928879,1738847446781,-1026.89,0.00019178,2]
[351928881,1738847446790,-902.45,0.00019178,2]
[351928883,1738847446799,-500.0,0.00019178,2]
[351928885,1738847446808,-506.27,0.00019178,2]
[351928887,1738847446818,-500.0,0.00019178,2]
[351928889,1738847446827,-1915.12,0.00019178,2]
[351928891,1738847446836,-550.50885313,0.00019178,2]
[351928892,1738847446846,-710.67,0.00019178,2]
[351928894,1738847446855,-1215.01,0.00019178,2]
[351928896,1738847446864,-500.0,0.00019178,2]
[351928898,1738847446873,-902.17,0.00019178,2]
[351928900,1738847446885,-500.0,0.00019178,2]
[351928902,1738847446900,-500.0,0.00019178,2]
[351928904,1738847446909,-500.0,0.00019178,2]
[351928906,1738847446919,-505.3321557,0.00019178,2]
[351928908,1738847446928,-502.51130787,0.00019178,2]
[351928910,1738847446937,-500.0,0.00019178,2]
[351928912,1738847446948,-500.0,0.00019178,2]
[351928914,1738847446958,-530.8,0.00019178,2]
[351928916,1738847446967,-1160.09,0.00019178,2]
[351928918,1738847446977,-500.0,0.00019178,2]
[351928920,1738847446988,-2281.51,0.00019178,2]
[351928922,1738847446998,-629.19,0.00019178,2]
[351928924,1738847447008,-619.32,0.00019178,2]
[351928926,1738847447018,-1488.56,0.00019178,2]
[351928928,1738847447027,-500.0,0.00019178,2]
[351928930,1738847447036,-500.0,0.00019178,2]
[351928932,1738847447046,-1809.02,0.00019178,2]
[351928934,1738847447055,-500.0,0.00019178,2]
[351928936,1738847447065,-500.0,0.00019178,2]
[351928938,1738847447074,-876.65,0.00019178,2]
[351928940,1738847447084,-1535.74,0.00019178,2]
[351928942,1738847447094,-500.0,0.00019178,2]
[351928944,1738847447104,-500.0,0.00019178,2]
[351928946,1738847447114,-1334.99,0.00019178,2]
[351928948,1738847447123,-500.0,0.00019178,2]
[351928950,1738847447132,-609.74,0.00019178,2]
[351928952,1738847447142,-678.12,0.00019178,2]
[351928954,1738847447151,-500.0,0.00019178,2]
[351928956,1738847447161,-1547.66,0.00019178,2]
[351928958,1738847447170,-500.0,0.00019178,2]
[351928960,1738847447180,-579.07,0.00019178,2]
[351928962,1738847447190,-500.0,0.00019178,2]
[351928964,1738847447200,-3636.45,0.00019178,2]
[351928966,1738847447210,-684.11,0.00019178,2]
[351928968,1738847447220,-500.0,0.00019178,2]
[351928970,1738847447233,-862.86,0.00019178,2]
[351928972,1738847447243,-1245.57,0.00019178,2]
[351928974,1738847447253,-1605.58,0.00019178,2]
[351928975,1738847447263,-500.0,0.00019178,2]
[351928977,1738847447273,-500.0,0.00019178,2]
[351928979,1738847447282,-608.20365108,0.00019178,2]
[351928981,1738847447292,-496.92884152,0.00019178,2]
[351928984,1738847447301,-804.82,0.00019178,2]
[351928985,1738847447311,-500.0,0.00019178,2]
[351928987,1738847447320,-500.0,0.00019178,2]
[351928989,1738847447329,-500.0,0.00019178,2]
[351928991,1738847447340,-2492.49,0.00019178,2]
[351928993,1738847447350,-500.0,0.00019178,2]
[351928995,1738847447359,-500.0,0.00019178,2]
[351928997,1738847447369,-500.0,0.00019178,2]
[351928999,1738847447378,-1404.78,0.00019178,2]
[351929001,1738847447388,-1021.69,0.00019178,2]
[351929003,1738847447398,-728.92,0.00019178,2]
[351929005,1738847447411,-500.0,0.00019178,2]
[351929007,1738847447420,-500.0,0.00019178,2]
[351929009,1738847447429,-500.0,0.00019178,2]
[351929011,1738847447438,-500.0,0.00019178,2]
[351929013,1738847447448,-500.0,0.00019178,2]
[351929015,1738847447458,-1127.04,0.00019178,2]
[351929017,1738847447468,-756.07,0.00019178,2]
[351929019,1738847447479,-500.0,0.00019178,2]
[351929021,1738847447488,-245.42882643,0.00019178,2]
[351929023,1738847447497,-500.0,0.00019178,2]
[351929025,1738847447506,-1319.56,0.00019178,2]
[351929027,1738847447516,-1063.13,0.00019178,2]
[351929029,1738847447525,-506.40517025,0.00019178,2]
[351929031,1738847447535,-502.29521538,0.00019178,2]
[351929033,1738847447545,-500.0,0.00019178,2]
[351929034,1738847447555,-500.0,0.00019178,2]
[351929036,1738847447564,-500.0,0.00019178,2]
[351929038,1738847447574,-958.14,0.00019178,2]
[351929040,1738847447584,-500.0,0.00019178,2]
[351929042,1738847447593,-500.0,0.00019178,2]
[351929044,1738847447602,-500.0,0.00019178,2]
[351929046,1738847447612,-519.43,0.00019178,2]
[351929048,1738847447621,-982.29,0.00019178,2]
[351929050,1738847447631,-698.23,0.00019178,2]
[351929052,1738847447641,-729.23,0.00019178,2]
[351929054,1738847447651,-500.0,0.00019178,2]
[351929056,1738847447661,-500.0,0.00019178,2]
[351929058,1738847447671,-992.66,0.00019178,2]
[351929060,1738847447681,-832.08,0.00019178,2]
[351929062,1738847447700,-500.0,0.00019178,2]
[351929064,1738847447714,-500.0,0.00019178,2]
[351929066,1738847447724,-500.0,0.00019178,2]
[351929068,1738847447734,-1231.93,0.00019178,2]
[351929070,1738847447744,-500.0,0.00019178,2]
[351929072,1738847447755,-906.53,0.00019178,2]
[351929074,1738847447764,-1380.26,0.00019178,2]
[351929076,1738847447774,-500.0,0.00019178,2]
[351929078,1738847447784,-500.0,0.00019178,2]
[351929080,1738847447794,-500.0,0.00019178,2]
[351929082,1738847447804,-500.0,0.00019178,2]
[351929084,1738847447814,-500.0,0.00019178,2]
[351929086,1738847447825,-500.0,0.00019178,2]
[351929088,1738847447835,-500.0,0.00019178,2]
[351929090,1738847447846,-500.0,0.00019178,2]
[351929092,1738847447856,-1036.51,0.00019178,2]
[351929094,1738847447867,-181.95790656,0.00019178,2]
[351929096,1738847447878,-500.0,0.00019178,2]
[351929098,1738847447889,-500.0,0.00019178,2]
[351929100,1738847447900,-623.01,0.00019178,2]
[351929102,1738847447915,-1663.04,0.00019178,2]
[351929104,1738847447927,-500.0,0.00019178,2]
[351929106,1738847447938,-490.68239705,0.00019178,2]
[351929108,1738847447949,-647.09,0.00019178,2]
[351929110,1738847447959,-707.13,0.00019178,2]
[351929112,1738847447969,-647.04,0.00019178,2]
[351929114,1738847447980,-764.69,0.00019178,2]
[351929116,1738847447991,-500.0,0.00019178,2]
[351929118,1738847448003,-500.0,0.00019178,2]
[351929120,1738847448013,-730.48,0.00019178,2]
[351929122,1738847448023,-500.0,0.00019178,2]
[351929124,1738847448033,-955.0,0.00019178,2]
[351929126,1738847448045,-500.0,0.00019178,2]
[351929128,1738847448057,-500.0,0.00019178,2]
[351929130,1738847448068,-1569.1,0.00019178,2]
[351929132,1738847448079,-500.0,0.00019178,2]
[351929134,1738847448090,-1403.55,0.00019178,2]
[351929136,1738847448100,-500.0,0.00019178,2]
[351929138,1738847448112,-500.0,0.00019178,2]
[351929140,1738847448123,-555.4,0.00019178,2]
[351929142,1738847448133,-529.65,0.00019178,2]
[351929144,1738847448144,-500.0,0.00019178,2]
[351929146,1738847448155,-500.0,0.00019178,2]
[351929148,1738847448166,-912.9,0.00019178,2]
[351929150,1738847448176,-500.0,0.00019178,2]
[351929152,1738847448187,-500.0,0.00019178,2]
[351929154,1738847448199,-686.82,0.00019178,2]
[351929156,1738847448210,-500.0,0.00019178,2]
[351929158,1738847448220,-500.0,0.00019178,2]
[351929160,1738847448231,-1183.86,0.00019178,2]
[351929162,1738847448241,-500.0,0.00019178,2]
[351929164,1738847448252,-1229.89,0.00019178,2]
[351929166,1738847448262,-711.88,0.00019178,2]
[351929168,1738847448272,-802.37,0.00019178,2]
[351929170,1738847448283,-500.0,0.00019178,2]
[351929172,1738847448293,-500.0,0.00019178,2]
[351929174,1738847448303,-642.40106786,0.00019178,2]
[351929175,1738847448314,-1148.91,0.00019178,2]
[351929178,1738847448326,-312.87,0.00019178,2]
[351929180,1738847448337,-150.0,0.00019178,2]
[351929182,1738847448347,-370.51,0.00019178,2]
[351929184,1738847448358,-380.37,0.00019178,2]
[351929186,1738847448369,-431.43955898,0.00019183,2]
[351929188,1738847448379,-166.04148688,0.000192,2]
[351929189,1738847448389,-437.59,0.00019242,30]
[351929191,1738847448400,-1800.0,0.000193,7]
[351929193,1738847448411,-166.04148688,0.000193,2]
[351929195,1738847448422,-644.01283154,0.00019314,3]
[351929197,1738847448433,-500.0,0.00019314,3]
[351929199,1738847448444,-570.41013168,0.00019314,2]
[351929201,1738847448455,-380.07480766,0.00019314,2]
[351929204,1738847448466,-500.0,0.00019314,2]
[351929205,1738847448476,-923.23,0.00019314,3]
[351929207,1738847448487,-1195.42,0.00019314,3]
[351929209,1738847448497,-913.18,0.00019314,3]
[351929211,1738847448507,-500.0,0.00019314,3]
[351929213,1738847448517,-500.0,0.00019314,3]
[351929215,1738847448527,-500.0,0.00019314,3]
[351929217,1738847448538,-1502.46,0.00019314,3]
[351929219,1738847448549,-500.0,0.00019314,3]
[351929221,1738847448559,-1376.05,0.00019314,3]
[351929223,1738847448570,-1528.59,0.00019314,3]
[351929224,1738847448579,-1110.75,0.00019314,3]
[351929226,1738847448589,-1258.35,0.00019314,3]
[351929228,1738847448599,-1149.66,0.00019314,3]
[351929230,1738847448608,-2890.84,0.00019314,3]
[351929232,1738847448618,-1446.46,0.00019314,3]
[351929234,1738847448628,-910.7,0.00019314,3]
[351929236,1738847448638,-1469.97,0.00019314,3]
[351929238,1738847448648,-783.6,0.00019314,3]
[351929240,1738847448657,-921.09,0.00019314,3]
[351929242,1738847448670,-1150.26,0.00019314,3]
[351929244,1738847448680,-500.0,0.00019314,3]
[351929246,1738847448691,-986.48,0.00019314,3]
[351929248,1738847448701,-1234.33,0.00019314,3]
[351929250,1738847448712,-1208.62,0.00019314,3]
[351929252,1738847448722,-1027.0,0.00019314,3]
[351929253,1738847448732,-599.09,0.00019314,3]
[351929255,1738847448743,-1000.0,0.00019314,2]
[351929257,1738847448753,-500.51786291,0.00019315,3]
[351929259,1738847448764,-500.0,0.00019315,3]
[351929261,1738847448774,-500.0,0.00019315,3]
[351929263,1738847448784,-500.0,0.00019315,3]
[351929265,1738847448794,-500.0,0.00019315,3]
[351929267,1738847448804,-500.0,0.00019315,5]
[351929269,1738847448814,-500.0,0.00019315,3]
[351929271,1738847448825,-502.50643083,0.00019315,3]
[351929273,1738847448835,-587.65,0.00019315,3]
[351929275,1738847448846,-500.0,0.00019315,3]
[351929277,1738847448856,-500.0,0.00019315,3]
[351929279,1738847448867,-605.72,0.00019315,3]
[351929281,1738847448877,-500.0,0.00019315,3]
[351929283,1738847448887,-500.0,0.00019315,3]
[351929284,1738847448903,-500.0,0.00019315,3]
[351929286,1738847448914,-574.22,0.00019315,3]
[351929288,1738847448924,-500.0,0.00019315,3]
[351929290,1738847448935,-500.0,0.00019315,3]
[351929292,1738847448945,-500.0,0.00019315,3]
[351929294,1738847448955,-572.86,0.00019315,3]
[351929296,1738847448965,-500.0,0.00019315,3]
[351929298,1738847448978,-500.0,0.00019315,3]
[351929300,1738847448989,-500.0,0.00019315,3]
[351929302,1738847448999,-500.0,0.00019315,3]
[351929304,1738847449010,-500.0,0.00019315,3]
[351929305,1738847449021,-500.0,0.00019315,3]
[351929307,1738847449032,-500.0,0.00019315,3]
[351929309,1738847449043,-500.0,0.00019315,3]
[351929311,1738847449054,-500.0,0.00019315,3]
[351929313,1738847449065,-500.0,0.00019315,3]
[351929315,1738847449076,-500.0,0.00019315,3]
[351929317,1738847449087,-191.75651735,0.00019315,3]
[351929319,1738847449098,-523.57870942,0.00019315,3]
[351929321,1738847449109,-500.0,0.00019315,3]
[351929323,1738847449119,-500.0,0.00019315,3]
[351929325,1738847449130,-504.47530574,0.00019315,3]
[351929327,1738847449140,-500.0,0.00019315,3]
[351929329,1738847449151,-500.0,0.00019315,3]
[351929331,1738847449161,-500.0,0.00019315,3]
[351929333,1738847449172,-500.0,0.00019315,3]
[351929335,1738847449182,-733.01,0.00019315,3]
[351929337,1738847449193,-500.0,0.00019315,3]
[351929339,1738847449204,-500.0,0.00019315,3]
[351929341,1738847449214,-500.0,0.00019315,3]
[351929343,1738847449224,-500.0,0.00019315,3]
[351929345,1738847449234,-873.69,0.00019315,3]
[351929347,1738847449244,-500.0,0.00019315,3]
[351929349,1738847449255,-1084.73,0.00019315,3]
[351929351,1738847449264,-500.0,0.00019315,3]
[351929353,1738847449275,-789.7,0.00019315,3]
[351929355,1738847449284,-552.61,0.00019315,3]
[351929356,1738847449294,-500.0,0.00019315,3]
[351929358,1738847449304,-500.0,0.00019315,3]
[351929360,1738847449314,-500.0,0.00019315,3]
[351929363,1738847449324,-500.0,0.00019315,3]
[351929364,1738847449335,-846.28,0.00019315,3]
[351929366,1738847449344,-500.0,0.00019315,3]
[351929368,1738847449354,-500.0,0.00019315,3]
[351929370,1738847449364,-500.0,0.00019315,3]
[351929372,1738847449374,-500.0,0.00019315,3]
[351929374,1738847449384,-500.0,0.00019315,3]
[351929376,1738847449394,-503.4784583,0.00019315,3]
[351929378,1738847449404,-500.0,0.00019315,3]
[351929380,1738847449414,-720.07,0.00019315,3]
[351929382,1738847449423,-500.0,0.00019315,3]
[351929384,1738847449433,-500.0,0.00019315,3]
[351929386,1738847449442,-500.0,0.00019315,3]
[351929388,1738847449452,-500.0,0.00019315,3]
[351929390,1738847449461,-1503.34,0.00019315,3]
[351929392,1738847449471,-500.0,0.00019315,3]
[351929394,1738847449484,-670.88,0.00019315,3]
[351929396,1738847449494,-500.0,0.00019315,3]
[351929398,1738847449503,-500.0,0.00019315,3]
[351929400,1738847449514,-500.0,0.00019315,3]
[351929402,1738847449523,-500.0,0.00019315,3]
[351929404,1738847449533,-1338.69,0.00019315,3]
[351929406,1738847449543,-654.93,0.00019315,3]
[351929408,1738847449552,-500.0,0.00019315,3]
[351929410,1738847449562,-508.68067419,0.00019315,3]
[351929412,1738847449572,-500.0,0.00019315,3]
[351929414,1738847449581,-849.97,0.00019315,3]
[351929416,1738847449591,-500.0,0.00019315,3]
[351929418,1738847449601,-570.28,0.00019315,3]
[351929420,1738847449611,-500.0,0.00019315,3]
[351929422,1738847449620,-500.0,0.00019315,3]
[351929424,1738847449630,-527.94238655,0.00019315,3]
[351929425,1738847449640,-413.71690094,0.00019315,3]
[351929427,1738847449649,-803.55,0.00019315,3]
[351929429,1738847449659,-952.94,0.00019315,3]
[351929431,1738847449669,-526.63,0.00019315,3]
[351929433,1738847449679,-500.0,0.00019315,3]
[351929435,1738847449688,-812.08,0.00019315,3]
[351929437,1738847449698,-500.0,0.00019315,3]
[351929439,1738847449708,-500.0,0.00019315,3]
[351929441,1738847449717,-1110.91,0.00019315,3]
[351929443,1738847449729,-503.60215071,0.00019315,3]
[351929445,1738847449739,-500.0,0.00019315,3]
[351929447,1738847449749,-500.0,0.00019315,3]
[351929449,1738847449759,-500.0,0.00019315,3]
[351929451,1738847449769,-734.61,0.00019315,3]
[351929453,1738847449779,-640.02,0.00019315,3]
[351929455,1738847449789,-500.0,0.00019315,3]
[351929457,1738847449798,-500.0,0.00019315,3]